{"text_format":"3","workbook":"xlsx","n_sheets":2,"sheets":["KEZDÉS","KÖLTSÉGVETÉSESZKÖZ"],"not_rendered":{"defined_names":2},"read":"whole","date_system":"1900"}

{"sheet":"KEZDÉS","index":0,"n_rows":7,"n_cols":2,"rows_kept":7}
[null,"A SABLON ISMERTETÉSE"]
[null,"Ezzel a Webhelyköltségvetési eszköz szolgáló eszközzel nyomon követheti a webhely kezdeti befektetéseit, valamint az előnyök és a költségek."]
[null,"Adja meg a cég neve és a dátum."]
[null,"Adja meg az adatokat a táblázatban a végösszegek és az értékelési metrikák kiszámításához."]
[null,"Megjegyzés:  "]
[null,"A KÖLTSÉGVETÉSESZKÖZ munkalap A oszlopában további útmutatást olvashat. Ez a szöveg szándékosan van elrejtve. Ha törölni szeretné a szöveget, jelölje ki az A oszlopot, majd nyomja le a DELETE billentyűt. Ha láthatóvá szeretné tenni a szöveget, jelölje ki az A oszlopot, majd módosítsa a betűszínt."]
[null,"Ha többet szeretne megtudni a munkalapon lévő táblázatokról, nyomja le a SHIFT+F10 billentyűkombinációt egy táblázaton belül, válassza a TÁBLÁZAT parancsot, majd a HELYETTESÍTŐ SZÖVEG elemet."]

{"sheet":"KÖLTSÉGVETÉSESZKÖZ","index":1,"n_rows":43,"n_cols":6,"rows_kept":43,"merged":[[14,1,14,5],[22,1,22,5],[30,1,30,5],[38,1,38,5]]}
["Ezen a munkalapon elkészítheti egy webhely költségvetését. Ennek az oszlopnak a celláiban a munkalap használatát megkönnyítő útmutatás olvasható. Első lépésként nyomja le a Le nyílbillentyűt."]
["A jobbra lévő cellában adhatja meg a cég neve.","Cég neve"]
["A jobbra lévő cellában szerepel a munkalap címe.","Webhelyköltségvetési eszköz"]
["A jobbra lévő cellában adhatja meg a dátum.","Dátum"]
["A jobbra lévő cellában egy tipp szerepel.","A szürke cellák nem módosítandó számításokat tartalmaznak."]
["A jobbra lévő cellában kezdődő Arány táblázatban adhatja meg az adatokat. A következő utasítás az A10 cellában található.","Cég adatai","Arány"]
[null,"Szükséges megtérülés",{"v":0.1,"d":"10%"}]
[null,"Áfakulcs",{"v":0.3,"d":"30%"}]
[]
["A jobbra lévő cellában kezdődő Kezdeti befektetés táblázatban adhatja meg az adatokat. A következő utasítás az A16 cellában található.","Kezdeti befektetések a webhelybe","ÉV","1","2","3"]
[null,"Hardver (például kiszolgálók)",{"v":25000,"d":"25,000.00 Ft"}]
[null,"Szoftver (például e-kereskedelmi katalógust kezelő szoftverek)",{"v":15000,"d":"15,000.00 Ft"}]
[null,"Fejlesztés (például külső fél által végzett webhelytervezés és -fejlesztés)",{"v":150000,"d":"150,000.00 Ft"}]
[null,"Kezdeti befektetések összesen",{"$f":"SUBTOTAL(109,KezdetiBefektetés[ÉV])","v":{"v":190000,"d":"190,000.00 Ft"}}]
[]
["A jobbra lévő cellában kezdődő Előnyök táblázatban adhatja meg az adatokat. A következő utasítás az A24 cellában található.","A webhelyből származó előnyök","ÉV","1","2","3"]
[null,"Közvetlen értékesítés",null,{"v":15000,"d":"15,000.00 Ft"},{"v":50000,"d":"50,000.00 Ft"},{"v":75000,"d":"75,000.00 Ft"}]
[null,"A promóciók/üzletkötők nagyobb hatékonyságából származó értékesítésnövekmény",null,{"v":25000,"d":"25,000.00 Ft"},{"v":25000,"d":"25,000.00 Ft"},{"v":25000,"d":"25,000.00 Ft"}]
[null,"A fokozott partneri részvételből származó értékesítésnövekmény",null,{"v":25000,"d":"25,000.00 Ft"},{"v":25000,"d":"25,000.00 Ft"},{"v":25000,"d":"25,000.00 Ft"}]
[null,"Csökkentett utazási költségek",null,{"v":25000,"d":"25,000.00 Ft"},{"v":25000,"d":"25,000.00 Ft"},{"v":25000,"d":"25,000.00 Ft"}]
[null,"Csökkentett ügyfélszolgáltatási költségek",null,{"v":50000,"d":"50,000.00 Ft"},{"v":50000,"d":"50,000.00 Ft"},{"v":50000,"d":"50,000.00 Ft"}]
[null,"Összes előny",null,{"$f":"SUBTOTAL(109,Előnyök[1])","v":{"v":140000,"d":"140,000.00 Ft"}},{"$f":"SUBTOTAL(109,Előnyök[2])","v":{"v":175000,"d":"175,000.00 Ft"}},{"$f":"SUBTOTAL(109,Előnyök[3])","v":{"v":200000,"d":"200,000.00 Ft"}}]
[]
["A jobbra lévő cellában kezdődő Költségek táblázatban adhatja meg az adatokat. A képletet tartalmazó cellákban a sablon automatikusan kiszámítja az értékeket. A következő utasítás az A32 cellában található.","Költségek (a kezdeti tőkebefektetéseken kívül)","ÉV","1","2","3"]
[null,"Értékesítés költsége",null,{"v":7500,"d":"7,500.00 Ft"},{"v":25000,"d":"25,000.00 Ft"},{"v":37500,"d":"37,500.00 Ft"}]
[null,"Karbantartás",null,{"v":15000,"d":"15,000.00 Ft"},{"v":15000,"d":"15,000.00 Ft"},{"v":15000,"d":"15,000.00 Ft"}]
[null,"Projektkezelés, ügyféltámogatás",null,{"v":35000,"d":"35,000.00 Ft"},{"v":35000,"d":"35,000.00 Ft"},{"v":35000,"d":"35,000.00 Ft"}]
[null,"Online hirdetés, keresőmotorokba való regisztráció",null,{"v":10000,"d":"10,000.00 Ft"},{"v":10000,"d":"10,000.00 Ft"},{"v":10000,"d":"10,000.00 Ft"}]
[null,"Tőkeráfordítás értékcsökkenése (a számítás három éves időszakot használ)",null,{"$f":"KezdetiBefektetés[[#Totals],[ÉV]]/3","v":{"v":63333.333333333336,"d":"63,333.33 Ft"}},{"$f":"KezdetiBefektetés[[#Totals],[ÉV]]/3","v":{"v":63333.333333333336,"d":"63,333.33 Ft"}},{"$f":"KezdetiBefektetés[[#Totals],[ÉV]]/3","v":{"v":63333.333333333336,"d":"63,333.33 Ft"}}]
[null,"Teljes költség",null,{"$f":"SUBTOTAL(109,Költségek[1])","v":{"v":130833.33333333334,"d":"130,833.33 Ft"}},{"$f":"SUBTOTAL(109,Költségek[2])","v":{"v":148333.33333333334,"d":"148,333.33 Ft"}},{"$f":"SUBTOTAL(109,Költségek[3])","v":{"v":160833.33333333334,"d":"160,833.33 Ft"}}]
[]
["A jobbra lévő cellában kezdődő Végösszegek táblázatban a sablon automatikusan kiszámítja az értékeket. A következő utasítás az A40 cellában található.","Végösszegek","ÉV","1","2","3"]
[null,"Nettó előnyök (költségek)",null,{"$f":"Előnyök[[#Totals],[1]]-Költségek[[#Totals],[1]]","v":{"v":9166.666666666657,"d":"9,166.67 Ft"}},{"$f":"Előnyök[[#Totals],[2]]-Költségek[[#Totals],[2]]","v":{"v":26666.666666666657,"d":"26,666.67 Ft"}},{"$f":"Előnyök[[#Totals],[3]]-Költségek[[#Totals],[3]]","v":{"v":39166.66666666666,"d":"39,166.67 Ft"}}]
[null,"Adó",null,{"$f":"D33*Áfakulcs","v":{"v":2749.999999999997,"d":"2,750.00 Ft"}},{"$f":"E33*Áfakulcs","v":{"v":7999.999999999996,"d":"8,000.00 Ft"}},{"$f":"F33*Áfakulcs","v":{"v":11749.999999999996,"d":"11,750.00 Ft"}}]
[null,"Adózás utáni érték",null,{"$f":"D33-D34","v":{"v":6416.666666666661,"d":"6,416.67 Ft"}},{"v":18666.66666666666,"d":"18,666.67 Ft"},{"v":27416.66666666666,"d":"27,416.67 Ft"}]
[null,"Ismét hozzáadott értékcsökkenés",null,{"$f":"D29","v":{"v":63333.333333333336,"d":"63,333.33 Ft"}},{"$f":"E29","v":{"v":63333.333333333336,"d":"63,333.33 Ft"}},{"$f":"F29","v":{"v":63333.333333333336,"d":"63,333.33 Ft"}}]
[null,"Pénzforgalom",{"$f":"-KezdetiBefektetés[[#Totals],[ÉV]]","v":{"v":-190000,"d":"-190,000.00 Ft"}},{"$f":"D35+D36","v":{"v":69750,"d":"69,750.00 Ft"}},{"v":82000,"d":"82,000.00 Ft"},{"v":90750,"d":"90,750.00 Ft"}]
[null,"Göngyölt pénzforgalom",{"$f":"C37","v":{"v":-190000,"d":"-190,000.00 Ft"}},{"$f":"C38+D37","v":{"v":-120250,"d":"-120,250.00 Ft"}},{"v":-38250,"d":"-38,250.00 Ft"},{"v":52500,"d":"52,500.00 Ft"}]
[]
["A jobbra lévő cellában kezdődő Metrikák táblázatban a sablon automatikusan kiszámítja az értékelési metrikák.","Értékelési metrikák","Értékek"]
[null,"Nettó jelenérték",{"$f":"C37+(NPV(ROR,D37:F37))","v":{"v":9359.504132231377,"d":"9,359.50 Ft"}}]
[null,"Belső megtérülési ráta",{"$f":"IRR(C37:F37)","v":{"v":0.12655165144706393,"d":"12.66%"}}]
[null,"Visszafizetési időszak (év)",{"$f":"IF(F38<=0,\"Túllépi a 3 évet\",IF(E38<=0,(F37-F38)/F37+2,IF(D38<=0,(E37-E38)/E37+1,IF(C38<=0,(D37-D38)/D37,\"–\"))))","v":{"v":2.4214876033057853,"d":"2.42"}}]